fUSD/lending_fUSD_20250321
["ID","MTS","AMOUNT","RATE_DAILY","PERIOD"]
[356504488,1742575839173,-500.0,0.00045149,120]
[356504489,1742575839182,-500.0,0.00045149,120]
[356504490,1742575839191,-500.0,0.00045149,120]
[356504491,1742575839200,-500.0,0.00045149,120]
[356504492,1742575839209,-500.0,0.00045149,120]
[356504493,1742575839219,-500.0,0.00045149,120]
[356504494,1742575839228,-500.0,0.00045149,120]
[356504495,1742575839237,-500.0,0.00045149,120]
[356504496,1742575839247,-500.0,0.00045149,120]
[356504497,1742575839255,-500.0,0.00045149,120]
[356504498,1742575839264,-500.0,0.00045149,120]
[356504499,1742575839275,-500.0,0.00045149,120]
[356504500,1742575839284,-500.0,0.00045149,120]
[356504501,1742575839293,-500.0,0.00045149,120]
[356504502,1742575839302,-500.0,0.00045149,120]
[356504503,1742575839311,-500.0,0.00045149,120]
[356504504,1742575839321,-500.0,0.00045149,120]
[356504505,1742575839330,-500.0,0.00045149,120]
[356504506,1742575839339,-500.0,0.00045149,120]
[356504507,1742575839349,-500.0,0.00045149,120]
[356504508,1742575839358,-500.0,0.00045149,120]
[356504509,1742575839367,-500.0,0.00045149,120]
[356504510,1742575839377,-500.0,0.00045149,120]
[356504511,1742575839386,-500.0,0.00045149,120]
[356504512,1742575839396,-500.0,0.00045149,120]
[356504513,1742575839405,-500.0,0.00045149,120]
[356504514,1742575839414,-500.0,0.00045149,120]
[356504515,1742575839424,-540.0,0.00045149,120]
[356504516,1742575839433,-500.0,0.00045149,14]
[356504517,1742575839442,-500.0,0.00045149,14]
[356504518,1742575839659,-150.0,0.00045162,2]
[356504519,1742575839669,-374.27,0.00045211,2]
[356504520,1742575839679,-184.18,0.0004523,2]
[356504521,1742575839688,-1500.0,0.0004523,2]
[356504522,1742575839698,-162.3,0.0004523,2]
[356504523,1742575839707,-1000.0,0.0004523,2]
[356504524,1742575839717,-181.37,0.0004523,2]
[356504525,1742575839726,-374.27,0.00045304,2]
[356504526,1742575839736,-500.07600339,0.00045325,2]
[356504527,1742575839745,-374.27,0.00045397,2]
[356504528,1742575839755,-374.27,0.0004549,2]
[356504529,1742575839765,-374.27,0.00045583,2]
[356504530,1742575839774,-900.71222628,0.00045592,15]
[356504531,1742575839784,-374.27,0.00045676,2]
[356504532,1742575839793,-267.0,0.00045685,90]
[356504533,1742575839802,-374.27,0.00045769,2]
[356504534,1742575839811,-374.27,0.00045862,2]
[356504535,1742575839820,-1370.08587016,0.00045898,18]
[356504536,1742575839830,-7295.7269,0.00045899,2]
[356504537,1742575839839,-12330.092,0.000459,2]
[356504538,1742575839848,-888.2283,0.000459,2]
[356504539,1742575839858,-500.0,0.000459,14]
[356504540,1742575839867,-500.0,0.000459,14]
[356504541,1742575839876,-834.7427,0.000459,120]
[356504542,1742575839886,-317.95058446,0.000459,2]
[356504543,1742575839895,-6494.32960493,0.000459,120]
[356504544,1742575839904,-374.27,0.00045955,2]
[356504545,1742575839913,-999.99,0.00045998,120]
[356504546,1742575839923,-1000.0,0.00045998,120]
[356504547,1742575839934,-1000.0,0.00045999,120]
[356504548,1742575839944,-275811.96835335,0.00046,120]
[356504549,1742575839965,-1578.73123483,0.00046,120]
[356504551,1742575840463,-41970.0,0.00046,120]
[356504552,1742575840518,-799.83389761,0.00046,120]
[356504599,1742575841920,1257.93,0.000335,31]
[356504609,1742575843347,-190.7947,0.0004421,14]
[356504610,1742575843357,-346.36947105,0.00046,120]
[356504611,1742575843399,-113873.23124409,0.00046,120]
[356504632,1742575843859,-45084.65427936,0.00046,120]
[356504634,1742575843868,-425.95403434,0.00046,120]
[356504635,1742575843878,-643.61823464,0.00046,120]
[356504637,1742575843887,-200.0,0.00046,7]
[356504638,1742575843898,-500.0,0.00046,14]
[356504639,1742575843908,-500.0,0.00046,14]
[356504640,1742575843918,-191.51,0.00046068,2]
[356504641,1742575843927,-154.28,0.000461,39]
[356504642,1742575843940,-154.28,0.000461,39]
[356504643,1742575843950,-154.28,0.000461,39]
[356504644,1742575843959,-154.28,0.000461,39]
[356504645,1742575843968,-154.28,0.000461,39]
[356504646,1742575843978,-154.28,0.000461,39]
[356504647,1742575843988,-154.28,0.000461,39]
[356504648,1742575843997,-154.28,0.000461,39]
[356504649,1742575844007,-154.28,0.000461,39]
[356504650,1742575844017,-154.28,0.000461,39]
[356504651,1742575844027,-900.71222628,0.00046135,15]
[356504652,1742575844036,-191.51,0.00046162,2]
[356504653,1742575844045,-191.51,0.00046257,2]
[356504654,1742575844055,-150.0,0.00046279,2]
[356504655,1742575844064,-191.51,0.00046352,2]
[356504656,1742575844073,-191.51,0.00046447,2]
[356504657,1742575844083,-200.0,0.0004646,7]
[356504658,1742575844091,-191.51,0.00046542,2]
[356504659,1742575844101,-168.83,0.00046587,2]
[356504660,1742575844110,-620.44,0.00046601,2]
[356504661,1742575844119,-207.0,0.0004661,30]
[356504662,1742575844128,-191.51,0.00046636,2]
[356504663,1742575844137,-170.3,0.00046651,2]
[356504664,1742575844146,-900.71222628,0.00046678,15]
[356504665,1742575844155,-191.51,0.00046731,2]
[356504666,1742575844164,-191.51,0.00046826,2]
[356504667,1742575844173,-1448.0,0.00047,7]
[356504668,1742575844182,-108660.29690147,0.00047,120]
[356504669,1742575844194,-2319.61965662,0.00047,120]
[356504674,1742575846795,-1219.81333996,0.00047,120]
[356504675,1742575846806,-206484.80453516,0.00047,120]
[356504676,1742575846817,-910.02206507,0.00047,120]
[356504677,1742575846828,-32324.72112952,0.00047,120]
[356504678,1742575846842,-12591.29768,0.00047,120]
[356504679,1742576258169,154.37,0.000335,31]
[356504680,1742576258220,154.37,0.000335,31]
[356504681,1742576861254,150.05514395,0.000335,31]
[356504682,1742576930191,250.0,0.00012,2]
[356504725,1742577031561,-165.87,0.00026849,2]
[356504727,1742577031571,-165.87,0.00032646,2]
[356504729,1742577031585,-4.32485605,0.000335,31]
[356504730,1742577031594,-133.30012595,0.000335,31]
[356504731,1742577031606,-21.07987405,0.000335,31]
[356504732,1742577031615,-200.71,0.00034243,30]
[356504733,1742577031625,-165.87,0.00038443,2]
[356504734,1742577031635,-154.38,0.000398,31]
[356504735,1742577031644,-154.38,0.000398,31]
[356504736,1742577031654,-10.6574426,0.000398,31]
[356504737,1742577031665,-143.7225574,0.000398,31]
[356504738,1742577031675,-154.38,0.000398,31]
[356504739,1742577031685,-331.89658474,0.00043312,2]
[356504740,1742577031708,-223.18341526,0.00043312,2]
[356504741,1742577031718,-165.87,0.00044239,2]
[356504742,1742577031727,-200.0,0.00045,90]
[356504743,1742577031737,-1776.5946,0.0004513,7]
[356504744,1742577031748,-150.0,0.00045131,2]
[356504745,1742577031757,-159.01708749,0.00045149,30]
[356504746,1742577031767,-150.0,0.00045149,30]
[356504747,1742577031777,-191.99307111,0.00045149,30]
[356504748,1742577031789,-307.39448736,0.00045149,30]
[356504749,1742577031805,-12.46802581,0.00045206,2]
[356504750,1742577031816,-187.53197419,0.00045206,2]
[356504751,1742577031827,-300.0,0.00045229,5]
[356504752,1742577031838,-211.18838303,0.0004523,2]
[356504777,1742577037398,-3379.26028201,0.0004523,2]
[356504778,1742577037451,-610.82773166,0.0004523,2]
[356504779,1742577037558,-19698.7236033,0.0004523,2]
[356504780,1742577037568,-184.74,0.0004523,120]
[356504781,1742577037578,-250.0,0.0004523,2]
[356504782,1742577037588,-157.63,0.0004523,2]
[356504783,1742577037597,-458.59,0.0004523,2]
[356504784,1742577037607,-191.65,0.00045285,120]
[356504785,1742577037617,-153.1363037,0.00045421,4]
[356504786,1742577037627,-555.08,0.00045576,2]
[356504787,1742577037637,-200.0,0.00045685,90]
[356504788,1742577037646,-205.90891679,0.000459,10]
[356504789,1742577037656,-1000.0,0.00046075,2]
[356504790,1742577037665,-154.38,0.000461,39]
[356504792,1742577037675,-154.38,0.000461,39]
[356504794,1742577037684,-154.38,0.000461,39]
[356504796,1742577037694,-154.38,0.000461,39]
[356504798,1742577037703,-150.0,0.00046337,2]
[356504800,1742577037712,-1500.0,0.00046768,2]
[356504802,1742577037721,-475.428,0.000469,78]
[356504804,1742577037730,-639.0935,0.000469,2]
[356504806,1742577037740,-500.0000437,0.000469,120]
[356504807,1742577037750,-1278.74681214,0.00046904,19]
[356504809,1742577037759,-500.0,0.00046999,120]
[356504811,1742577037768,-558.21172208,0.00046999,120]
[356504813,1742577037778,-500.0,0.00046999,120]
[356504815,1742577037787,-1424.56,0.00046999,120]
[356504817,1742577037797,-500.0,0.00046999,120]
[356504819,1742577037806,-200.28694412,0.00046999,120]
[356504821,1742577037816,-986.11,0.00046999,120]
[356504823,1742577037825,-539.14913064,0.00046999,120]
[356504825,1742577037835,-639.3,0.00046999,120]
[356504827,1742577037847,-598.46,0.00046999,120]
[356504828,1742577037857,-501.23728791,0.00046999,120]
[356504830,1742577037866,-517.7136462,0.00046999,120]
[356504832,1742577037875,-500.0,0.00046999,120]
[356504833,1742577037885,-467.4233334,0.00046999,120]
[356504859,1742577039599,-32.5766666,0.00046999,120]
[356504860,1742577039608,-536.71969182,0.00046999,120]
[356504861,1742577039704,-64.68030818,0.00046999,120]
[356504862,1742577039714,-382.64678673,0.00046999,120]
[356504863,1742577039862,-117.35321327,0.00046999,120]
[356504864,1742577039871,-500.91907029,0.00046999,120]
[356504865,1742577039880,-1325.01646177,0.00046999,120]
[356504866,1742577039914,-639.09354584,0.00046999,120]
[356504883,1742577045716,-3991.95999239,0.00046999,120]
[356504884,1742577045726,-500.0,0.00046999,120]
[356504885,1742577045735,-593.94,0.00046999,120]
[356504886,1742577045744,-500.0,0.00046999,120]
[356504887,1742577045753,-500.0,0.00046999,120]
[356504888,1742577045762,-500.0,0.00046999,120]
[356504889,1742577045771,-500.0,0.00046999,120]
[356504890,1742577045780,-500.0,0.00046999,120]
[356504891,1742577045789,-500.0,0.00046999,2]
[356504892,1742577045797,-500.0,0.00046999,120]
[356504893,1742577045806,-500.0,0.00046999,120]
[356504894,1742577045815,-500.0,0.00046999,120]
[356504895,1742577045824,-506.3173824,0.00046999,120]
[356504896,1742577045833,-500.0,0.00046999,120]
[356504897,1742577045842,-866.87,0.00046999,120]
[356504898,1742577045852,-519.14861772,0.00046999,120]
[356504899,1742577045861,-500.0,0.00046999,120]
[356504900,1742577045870,-207.04773379,0.00046999,2]
[356504901,1742577045879,-503.11275302,0.00046999,120]
[356504902,1742577045889,-513.77794535,0.00046999,120]
[356504903,1742577045898,-500.0,0.00046999,120]
[356504904,1742577045907,-500.0,0.00046999,120]
[356504905,1742577045916,-500.57256825,0.00046999,120]
[356504906,1742577045925,-500.0,0.00046999,120]
[356504907,1742577045934,-500.0,0.00046999,120]
[356504908,1742577045943,-500.0,0.00046999,120]
[356504909,1742577045952,-506.08030661,0.00046999,120]
[356504910,1742577045961,-8591.38,0.00046999,120]
[356504911,1742577045970,-512.59621322,0.00046999,120]
[356504912,1742577045979,-500.0,0.00046999,120]
[356504913,1742577045988,-1887.4,0.00046999,120]
[356504914,1742577045997,-208.97927209,0.00046999,120]
[356504915,1742577046007,-500.0,0.00046999,120]
[356504916,1742577046016,-500.29748662,0.00046999,2]
[356504917,1742577046024,-504.03680748,0.00046999,120]
[356504918,1742577046034,-684.93,0.00046999,120]
[356504919,1742577046043,-220.78532004,0.00047,30]
[356504920,1742577046052,-91235.22692029,0.00047,30]
[356504921,1742577046061,-573.02238193,0.00047,30]
[356504922,1742577046070,-196808.07062491,0.00047,120]
[356504923,1742577046082,-24044.0910138,0.00047,120]
[356504924,1742577046093,-339.45811069,0.00047,120]
[356504929,1742578075338,352.50794885,0.0001,2]
[356505039,1742578239938,-5895.24559734,0.0004,30]
[356505050,1742578240048,-5947.08101063,0.0004,30]
[356505052,1742578240057,-539.18,0.000432,2]
[356505054,1742578240067,-205.90891679,0.000439,9]
[356505056,1742578240077,-150.0,0.00045,90]
[356505059,1742578240097,-191.65,0.00045173,120]
[356505062,1742578240116,-539.18,0.00045464,2]
[356505064,1742578240130,-150.0,0.00045511,2]
[356505067,1742578240144,-153.1363037,0.00045589,4]
[356505070,1742578240159,-229.29,0.00045604,2]
[356505074,1742578240174,-150.0,0.00045685,90]
[356505078,1742578240190,-157.63,0.00045866,2]
[356505083,1742578240204,-1000.0,0.00045938,2]
[356505086,1742578240216,-25000.0,0.00046,2]
[356505089,1742578240228,-2000.0,0.00046,120]
[356505094,1742578240242,-250.0,0.0004603,2]
[356505097,1742578240257,-23474.80104919,0.00046246,2]
[356505102,1742578240274,-416.59088653,0.00046246,2]
[356505278,1742578243605,-8.60806428,0.00046246,2]
[356505279,1742578243615,-236.95353503,0.00046258,2]
[356505280,1742578243624,-380.343,0.00046258,76]
[356505281,1742578243633,-2000.0,0.000465,120]
[356505282,1742578243643,-23836.87675027,0.0004653,2]
[356505283,1742578243655,-159.8,0.0004653,30]
[356505284,1742578243664,-150.0,0.00046727,2]
[356505285,1742578243674,-199.87966082,0.00046898,15]
[356505286,1742578243683,-559.60484013,0.00046898,15]
[356505287,1742578244030,-1573.4488,0.00046898,2]
[356505288,1742578244050,-11699.8229,0.00046899,2]
[356505289,1742578244062,-1969.2323,0.00046899,2]
[356505290,1742578244071,-88888.0,0.00046899,120]
[356505291,1742578244080,-762.30257379,0.000469,120]
[356505292,1742578244089,-377.0233,0.000469,2]
[356505293,1742578244098,-213.8,0.000469,120]
[356505294,1742578244107,-205.90891679,0.00046967,10]
[356505295,1742578244116,-1395.1,0.00046988,2]
[356505296,1742578244125,-500.0,0.00046997,120]
[356505297,1742578244134,-627.36473086,0.00046997,120]
[356505298,1742578244143,-681.95,0.00046997,120]
[356505299,1742578244153,-500.0,0.00046997,120]
[356505300,1742578244162,-500.0,0.00046997,120]
[356505301,1742578244172,-982.26,0.00046997,120]
[356505302,1742578244181,-500.0,0.00046997,120]
[356505303,1742578244190,-627.21,0.00046997,120]
[356505304,1742578244199,-1282.84,0.00046997,120]
[356505305,1742578244208,-500.0,0.00046997,120]
[356505306,1742578244217,-1084.25,0.00046997,120]
[356505307,1742578244226,-620.32,0.00046997,120]
[356505308,1742578244236,-2355.15,0.00046997,120]
[356505309,1742578244247,-894.92,0.00046997,120]
[356505310,1742578244257,-562.16,0.00046997,120]
[356505311,1742578244266,-500.0,0.00046997,120]
[356505312,1742578244276,-1858.32,0.00046997,120]
[356505313,1742578244285,-662.73,0.00046997,120]
[356505314,1742578244294,-648.76,0.00046997,120]
[356505315,1742578244303,-2304.01,0.00046997,120]
[356505316,1742578244312,-530.91,0.00046997,120]
[356505317,1742578244322,-2943.69,0.00046997,120]
[356505318,1742578244331,-850.57,0.00046997,120]
[356505319,1742578244340,-500.0,0.00046997,120]
[356505320,1742578244350,-500.0,0.00046997,120]
[356505321,1742578244359,-500.0,0.00046997,2]
[356505322,1742578244368,-500.0,0.00046997,120]
[356505323,1742578244378,-500.0,0.00046997,120]
[356505324,1742578244387,-500.0,0.00046997,120]
[356505325,1742578244397,-500.0,0.00046997,120]
[356505326,1742578244406,-739.44,0.00046997,120]
[356505327,1742578244416,-780.35,0.00046997,120]
[356505328,1742578244425,-500.0,0.00046997,120]
[356505329,1742578244434,-500.0,0.00046997,120]
[356505330,1742578244443,-500.0,0.00046997,120]
[356505331,1742578244453,-500.0,0.00046997,120]
[356505332,1742578244463,-500.0,0.00046997,120]
[356505333,1742578244472,-500.0,0.00046997,120]
[356505334,1742578244482,-500.0,0.00046997,120]
[356505335,1742578244491,-500.0,0.00046997,120]
[356505336,1742578244501,-500.0,0.00046997,120]
[356505337,1742578244511,-500.0,0.00046997,120]
[356505338,1742578244520,-511.83595489,0.00046997,120]
[356505339,1742578244530,-500.0,0.00046997,120]
[356505340,1742578244539,-347.12659947,0.00046997,120]
[356505341,1742578245775,-200.0,0.00045556,2]
[356505342,1742578245785,-152.87340053,0.00046997,120]
[356505343,1742578245797,-428.52687343,0.00046997,120]
[356505344,1742579200112,-153.0,0.0002392,2]
[356505345,1742579200133,-321.47972951,0.00042151,2]
[356505362,1742579431871,-230.88,0.00026849,2]
[356505363,1742579431882,-230.88,0.00032646,2]
[356505364,1742579431891,-230.88,0.00038443,2]
[356505365,1742579431901,-298.021,0.00042151,2]
[356505366,1742579431910,-163.0,0.00044,120]
[356505367,1742579431919,-265.6165025,0.00044039,2]
[356505368,1742579431928,-485.26,0.00044076,2]
[356505369,1742579431938,-202.6834975,0.00044139,2]
[356505370,1742579431947,-230.88,0.00044239,2]
[356505371,1742579431958,-179.0,0.00045,120]
[356505372,1742579431967,-151.0,0.00045,90]
[356505373,1742579431976,-1088.58,0.00045,2]
[356505374,1742579431985,-150.0,0.00045263,2]
[356505375,1742579431994,-200.0,0.00045363,2]
[356505376,1742579432003,-200.0,0.000454,120]
[356505377,1742579432012,-265.61650248,0.00045418,2]
[356505378,1742579432021,-229.29,0.00045529,2]
[356505379,1742579432030,-151.0,0.00045685,90]
[356505380,1742579432040,-157.63,0.00045693,2]
[356505381,1742579432054,-155.56,0.0004574,2]
[356505382,1742579432063,-250.0,0.00045789,2]
[356505383,1742579432072,-184.74,0.00045882,120]
[356505384,1742579432081,-205.90891679,0.000459,10]
[356505385,1742579432094,-1000.0,0.00045979,2]
[356505386,1742579432103,-15302.88138697,0.00045979,30]
[356505387,1742579432115,-4418.37861303,0.00045979,30]
[356505388,1742579432124,-7126.71742126,0.00045984,2]
[356505389,1742579432135,-468.3,0.00045984,2]
[356505390,1742579432159,-254.70254848,0.00045984,2]
[356505391,1742579432173,-7449.90068205,0.00045984,2]
[356505392,1742579432202,-2115.381273,0.00045984,2]
[356505396,1742579437678,-494.01,0.00045984,2]
[356505397,1742579437791,-750.73795033,0.00045984,2]
[356505398,1742579437952,-3.97954127,0.00045984,2]
[356505404,1742579438052,-1464.46322864,0.00045984,2]
[356505422,1742579439851,-3168.62113046,0.00045984,2]
[356505423,1742579439863,-371.236086,0.00045984,2]
[356505424,1742579439962,-231.95013851,0.00045984,2]
[356505425,1742579439972,-1057.50924714,0.00046057,10]
[356505426,1742579439981,-485.26,0.0004634,2]
[356505427,1742579439990,-150.0,0.00046472,2]
[356505428,1742579439999,-155.56,0.00046655,2]
[356505429,1742579440008,-265.61650248,0.00046796,2]
[356505430,1742579440017,-139.5349185,0.00046797,2]
[356505431,1742579440276,-227.3876815,0.00046797,2]
[356505432,1742579440288,-814.4623185,0.00046798,53]
[356505433,1742579440327,-1773.5376815,0.00046798,53]
[356505434,1742579440336,-6647.54218218,0.00046896,2]
[356505443,1742579442875,-912.42071488,0.00046896,2]
[356505444,1742579442993,-3846.78455,0.00046896,2]
[356505445,1742579443004,-1457.86285409,0.00046896,2]
[356505446,1742579443015,-276.29565446,0.00046896,2]
[356505447,1742579443026,-709.00241687,0.00046896,2]
[356505448,1742579443037,-455.37695136,0.00046896,2]
[356505449,1742579443048,-12214.11797616,0.00046896,2]
[356505450,1742579443057,-826.8989,0.00046896,2]
[356505451,1742579443067,-1882.3245,0.00046896,2]
[356505452,1742579443076,-226.07801828,0.00046896,15]
[356505453,1742579443085,-522.82186046,0.00046896,15]
[356505454,1742579443097,-1169.3587451,0.00046896,19]
[356505455,1742579443108,-72.53203258,0.00046896,19]
[356505456,1742579443116,-324.5543214,0.00046897,10]
[356505457,1742579443135,-108.4094786,0.00046897,10]
[356505458,1742579443145,-1891.5905214,0.00046897,120]
[356505459,1742579443155,-548.915419,0.00046897,120]
[356505491,1742579445766,-1143.97892178,0.00046897,120]
[356505498,1742579445823,-294.32396154,0.00046897,120]
[356505500,1742579445835,-601.97500688,0.00046897,120]
[356505502,1742579445846,-9886.5661,0.00046897,120]
[356505507,1742579445880,-20363.49074058,0.00046897,120]
[356505514,1742579445936,-1509.11451349,0.00046897,120]
[356505516,1742579445948,-50977.62661533,0.00046897,120]
[356505518,1742579445957,-304.274,0.00046898,78]
[356505520,1742579445967,-161.73100457,0.00046899,25]
[356505522,1742579445975,-959.13,0.00046985,2]
[356505524,1742579445984,-500.0,0.00046994,120]
[356505526,1742579445994,-559.78687939,0.00046994,120]
[356505528,1742579446003,-500.0,0.00046994,2]
[356505529,1742579446012,-500.0,0.00046994,120]
[356505530,1742579446022,-500.0,0.00046994,120]
[356505531,1742579446030,-500.0,0.00046994,120]
[356505532,1742579446039,-500.0,0.00046994,120]
[356505533,1742579446049,-457.68859338,0.00046995,38]
[356505534,1742579446058,-547.68124687,0.00046995,120]
[356505535,1742579446067,-500.0,0.00046995,120]
[356505536,1742579446076,-500.0,0.00046995,120]
[356505537,1742579446087,-500.0,0.00046995,120]
[356505538,1742579446101,-500.0,0.00046995,120]
[356505539,1742579446110,-500.0,0.00046995,120]
[356505540,1742579446119,-500.0,0.00046995,120]
[356505541,1742579446128,-500.0,0.00046995,120]
[356505542,1742579446138,-500.0,0.00046995,120]
[356505543,1742579446147,-500.0,0.00046995,120]
[356505544,1742579446157,-500.0,0.00046995,120]
[356505545,1742579446167,-500.0,0.00046995,120]
[356505546,1742579446177,-500.0,0.00046995,120]
[356505547,1742579446187,-524.24484332,0.00046995,120]
[356505548,1742579446197,-500.0,0.00046995,120]
[356505549,1742579446206,-500.0,0.00046995,120]
[356505550,1742579446216,-500.0,0.00046995,120]
[356505551,1742579446226,-500.0,0.00046995,120]
[356505552,1742579446236,-500.0,0.00046995,120]
[356505553,1742579446246,-500.0,0.00046995,120]
[356505554,1742579446255,-500.0,0.00046995,120]
[356505555,1742579446265,-500.0,0.00046995,120]
[356505556,1742579446274,-500.0,0.00046995,120]
[356505557,1742579446283,-500.0,0.00046995,120]
[356505558,1742579446293,-500.0,0.00046995,120]
[356505559,1742579446302,-500.0,0.00046995,120]
[356505560,1742579446311,-500.0,0.00046995,120]
[356505561,1742579446320,-500.0,0.00046995,120]
[356505562,1742579446329,-500.0,0.00046995,120]
[356505563,1742579446339,-500.0,0.00046995,120]
[356505564,1742579446348,-500.0,0.00046995,120]
[356505565,1742579446358,-500.0,0.00046995,120]
[356505566,1742579446367,-201.76563209,0.00046995,120]
[356505567,1742579446377,-500.0,0.00046995,120]
[356505568,1742579446386,-500.0,0.00046995,120]
[356505569,1742579446395,-500.0,0.00046995,120]
[356505570,1742579446405,-500.0,0.00046995,120]
[356505571,1742579446414,-500.0,0.00046995,120]
[356505572,1742579446424,-500.0,0.00046995,120]
[356505573,1742579446433,-500.0,0.00046995,120]
[356505574,1742579446443,-500.0,0.00046995,120]
[356505575,1742579446453,-500.0,0.00046995,120]
[356505576,1742579446463,-500.0,0.00046995,120]
[356505577,1742579446475,-500.0,0.00046995,120]
[356505578,1742579446484,-500.0,0.00046995,120]
[356505579,1742579446494,-500.0,0.00046995,120]
[356505580,1742579446502,-500.0,0.00046995,120]
[356505581,1742579446512,-500.0,0.00046995,120]
[356505582,1742579446521,-500.0,0.00046995,120]
[356505583,1742579446531,-500.0,0.00046995,120]
[356505584,1742579446540,-500.0,0.00046995,120]
[356505585,1742579446550,-500.0,0.00046995,120]
[356505586,1742579446559,-500.0,0.00046995,120]
[356505587,1742579446568,-500.0,0.00046995,120]
[356505588,1742579446578,-500.0,0.00046995,120]
[356505589,1742579446587,-500.0,0.00046995,120]
[356505590,1742579446597,-500.0,0.00046995,120]
[356505591,1742579446607,-500.0,0.00046995,120]
[356505592,1742579446616,-500.0,0.00046995,120]
[356505593,1742579446625,-500.0,0.00046995,120]
[356505594,1742579446635,-500.0,0.00046995,120]
[356505595,1742579446644,-500.0,0.00046995,120]
[356505596,1742579446653,-500.0,0.00046995,120]
[356505597,1742579446663,-107.72369573,0.00046995,120]
[356505598,1742579446679,-392.27630427,0.00046995,120]
[356505599,1742579446690,-500.0,0.00046995,120]
[356505600,1742579446914,-500.0,0.00046995,120]
[356505601,1742579446925,-500.0,0.00046995,120]
[356505602,1742579446935,-190.92166496,0.00046995,120]
[356505603,1742579446946,-269.38241397,0.00046995,120]
[356505604,1742579446958,-39.69592107,0.00046995,120]
[356505605,1742579446969,-500.0,0.00046995,120]
[356505606,1742579446979,-916.6,0.00046995,120]
[356505607,1742579446988,-317.58455651,0.00046995,120]
[356505608,1742579447000,-603.38176449,0.00046995,120]
[356505609,1742579447009,-500.0,0.00046995,120]
[356505610,1742579447018,-500.0,0.00046995,120]
[356505611,1742579447028,-500.0,0.00046995,120]
[356505612,1742579447038,-500.0,0.00046995,120]
[356505613,1742579447048,-500.0,0.00046995,120]
[356505614,1742579447057,-158.219366,0.00046995,120]
[356505615,1742579447067,-500.0,0.00046995,120]
[356505616,1742579447079,-500.0,0.00046995,120]
[356505617,1742579447089,-500.0,0.00046995,120]
[356505618,1742579447103,-153.85201522,0.00046995,120]
[356505619,1742579447115,-346.14798478,0.00046995,120]
[356505620,1742579447124,-500.0,0.00046995,120]
[356505621,1742579447135,-63.92327522,0.00046995,120]
[356505628,1742580632003,-156.11,0.00026849,2]
[356505629,1742580632013,-150.0,0.00028192,2]
[356505630,1742580632023,-150.0,0.00029534,2]
[356505631,1742580632032,-150.0,0.00029534,2]
[356505632,1742580632042,-300.0,0.00031249,2]
[356505633,1742580632051,-2157.24323409,0.0003125,30]
[356505634,1742580632063,-1060.5,0.0003125,30]
[356505635,1742580632074,-1565.51600315,0.0003125,30]
[356505636,1742580632085,-5595.86450482,0.0003125,30]
[356505637,1742580632094,-156.11,0.00033733,2]
[356505638,1742580632104,-207.06556956,0.000339,6]
[356505639,1742580632114,-350.0,0.00034375,2]
[356505640,1742580632124,-207.06556944,0.000379,8]
[356505641,1742580632133,-156.11,0.00040616,2]
[356505642,1742580632143,-151.0,0.00041,14]
[356505643,1742580632152,-207.06556944,0.000419,9]